lending/lending_fUSD_20251111
["ID","MTS","AMOUNT","RATE_DAILY","PERIOD"]
[393625325,1762864245980,-500.0,0.00036556,2]
[393625326,1762864245989,-500.0,0.00036556,2]
[393625327,1762864245998,-500.0,0.00036556,2]
[393625328,1762864246007,-500.0,0.0003657,120]
[393625329,1762864246016,-500.0,0.0003657,120]
[393625330,1762864246025,-7012.81,0.000366,2]
[393625331,1762864246035,-168.0,0.0003668,2]
[393625332,1762864246045,-205.35613769,0.00036693,2]
[393625333,1762864246054,-500.0,0.00036693,2]
[393625334,1762864246064,-500.0,0.00036693,2]
[393625335,1762864246073,-500.0,0.00036693,2]
[393625336,1762864246083,-1000.0,0.00036713,7]
[393625337,1762864246091,-829.81666734,0.00036721,5]
[393625338,1762864246100,-1000.0,0.00036721,5]
[393625339,1762864246110,-500.59589849,0.00036721,5]
[393625340,1762864246119,-160.810076,0.00036725,2]
[393625341,1762864246128,-156.460359,0.00036725,2]
[393625342,1762864246137,-153.257485,0.00036725,2]
[393625343,1762864246146,-3496.28,0.000368,30]
[393625344,1762864246156,-528.38259742,0.0003683,2]
[393625345,1762864246165,-500.0,0.0003683,2]
[393625346,1762864246175,-500.0,0.0003683,2]
[393625347,1762864246184,-2500.0,0.00036843,2]
[393625348,1762864246193,-1000.0,0.000369,7]
[393625349,1762864246203,-168.0,0.00036944,7]
[393625350,1762864246212,-5000.0,0.00036949,2]
[393625351,1762864246222,-5000.0,0.00036949,2]
[393625352,1762864246231,-5000.0,0.00036949,2]
[393625353,1762864246241,-5000.0,0.00036949,2]
[393625354,1762864246249,-156.441113,0.00036954,2]
[393625355,1762864246259,-186.338707,0.00036954,2]
[393625356,1762864246268,-150.271484,0.00036954,2]
[393625357,1762864246278,-156.441113,0.00036954,2]
[393625358,1762864246288,-500.0,0.00036967,2]
[393625359,1762864246297,-500.0,0.00036967,2]
[393625360,1762864246309,-8207.96,0.00037,14]
[393625361,1762864246320,-6413.57798147,0.00037,30]
[393625362,1762864246328,-500.0,0.00037104,2]
[393625363,1762864246337,-500.0,0.00037104,2]
[393625364,1762864246347,-156.65,0.00037142,60]
[393625365,1762864246357,-200.0,0.00037151,14]
[393625366,1762864246367,-186.29272794,0.000372,120]
[393625367,1762864246376,-186.02,0.00037203,2]
[393625368,1762864246387,-500.0,0.00037241,2]
[393625369,1762864246396,-500.0,0.00037241,2]
[393625370,1762864246406,-156.65,0.00037242,60]
[393625371,1762864246415,-151.0,0.00037265,14]
[393625372,1762864246424,-1000.0,0.00037268,5]
[393625373,1762864246433,-156.65,0.00037342,60]
[393625374,1762864246442,-300.0,0.00037348,2]
[393625375,1762864246453,-818.82966897,0.00037351,15]
[393625376,1762864246462,-168.0,0.00037351,2]
[393625377,1762864246472,-500.0,0.00037378,2]
[393625378,1762864246481,-156.65,0.00037442,60]
[393625379,1762864246490,-211.15,0.00037479,60]
[393625380,1762864246500,-500.0,0.00037515,2]
[393625381,1762864246510,-343.65862463,0.00037515,2]
[393625382,1762864246519,-500.0,0.00037515,2]
[393625383,1762864246528,-156.65,0.00037542,60]
[393625384,1762864246538,-216.88705013,0.00037584,2]
[393625385,1762864246547,-156.65,0.00037642,60]
[393625386,1762864246558,-632.46147239,0.00037652,2]
[393625387,1762864246567,-300.0,0.00037666,2]
[393625388,1762864246577,-160.29773987,0.00037667,5]
[393625389,1762864246586,-300.0,0.00037696,2]
[393625390,1762864246595,-156.65,0.00037742,60]
[393625391,1762864246605,-152.0,0.00037745,3]
[393625392,1762864246614,-295.15,0.00037783,2]
[393625394,1762864246624,-284.97,0.00037807,2]
[393625396,1762864246634,-156.65,0.00037842,60]
[393625398,1762864246644,-168.0,0.00037865,2]
[393625399,1762864246654,-239.17,0.000379,14]
[393625400,1762864246663,-7012.81,0.000379,2]
[393625401,1762864246673,-300.0,0.00037942,2]
[393625402,1762864246683,-156.69805877,0.00037942,60]
[393625403,1762864246693,-216.88705013,0.00037964,2]
[393625404,1762864246703,-17835.0,0.00038,7]
[393625405,1762864246713,-243.43683837,0.00038,120]
[393625406,1762864246723,-1241.0,0.00038,7]
[393625407,1762864246734,-493.85332657,0.00038,30]
[393625408,1762864246743,-300.0,0.00038021,2]
[393625409,1762864246752,-300.0,0.00038027,2]
[393625410,1762864246762,-300.0,0.00038045,2]
[393625411,1762864246772,-232.05678849,0.00038058,2]
[393625412,1762864246784,-300.0,0.00038065,2]
[393625413,1762864246796,-3496.28,0.000381,30]
[393625414,1762864246806,-594.84729005,0.00038122,5]
[393625415,1762864246815,-300.0,0.00038134,2]
[393625416,1762864246824,-300.0,0.00038143,2]
[393625417,1762864246834,-150.0,0.00038172,7]
[393625418,1762864246843,-300.0,0.00038203,2]
[393625419,1762864246853,-500.0,0.00038219,7]
[393625420,1762864246863,-500.0,0.00038219,7]
[393625421,1762864246873,-500.0,0.00038219,7]
[393625422,1762864246883,-300.0,0.00038261,2]
[393625423,1762864246895,-1000.0,0.00038278,7]
[393625424,1762864246905,-8207.96,0.000383,14]
[393625425,1762864246915,-153.257485,0.0003831,2]
[393625426,1762864246925,-160.810076,0.0003831,2]
[393625427,1762864246934,-156.460359,0.0003831,2]
[393625428,1762864246943,-153.257485,0.0003831,2]
[393625429,1762864246953,-156.024365,0.0003831,2]
[393625430,1762864246962,-1250.53,0.0003832,2]
[393625431,1762864246971,-150.0,0.0003833,7]
[393625432,1762864246980,-216.88705013,0.00038345,2]
[393625433,1762864246989,-867.0,0.00038351,7]
[393625434,1762864246998,-500.0,0.00038356,2]
[393625435,1762864247007,-500.0,0.00038356,2]
[393625436,1762864247016,-500.0,0.00038356,2]
[393625437,1762864247025,-500.0,0.00038356,2]
[393625438,1762864247034,-500.0,0.00038356,2]
[393625439,1762864247044,-299.98409601,0.00038356,2]
[393625440,1762864247052,-500.0,0.00038356,30]
[393625441,1762864247061,-1000.0,0.00038356,2]
[393625442,1762864247070,-1000.0,0.00038356,2]
[393625443,1762864247079,-1000.0,0.00038356,2]
[393625444,1762864247088,-1000.0,0.00038356,2]
[393625445,1762864247097,-1000.0,0.00038356,2]
[393625446,1762864247107,-1000.0,0.00038356,2]
[393625447,1762864247116,-1084.87375295,0.00038356,2]
[393625448,1762864247125,-500.0,0.00038356,2]
[393625449,1762864247135,-500.0,0.00038356,2]
[393625450,1762864247145,-500.0,0.00038356,2]
[393625451,1762864247155,-500.0,0.00038356,2]
[393625452,1762864247164,-192.83,0.00038356,14]
[393625453,1762864247173,-500.0,0.00038356,2]
[393625454,1762864247182,-1178.71,0.00038356,2]
[393625455,1762864247191,-1178.71,0.00038356,2]
[393625456,1762864247200,-1178.71,0.00038356,2]
[393625457,1762864247210,-1178.71,0.00038356,2]
[393625458,1762864247219,-1178.71,0.00038356,2]
[393625459,1762864247228,-1178.71,0.00038356,2]
[393625460,1762864247237,-1178.71,0.00038356,2]
[393625461,1762864247246,-1178.71,0.00038356,2]
[393625462,1762864247255,-1178.71,0.00038356,2]
[393625463,1762864247264,-1178.71,0.00038356,2]
[393625464,1762864247273,-1178.71,0.00038356,2]
[393625465,1762864247285,-1178.71,0.00038356,2]
[393625466,1762864247295,-1178.71,0.00038356,2]
[393625467,1762864247307,-1178.71,0.00038356,2]
[393625468,1762864247318,-1178.71,0.00038356,2]
[393625469,1762864247329,-1178.71,0.00038356,2]
[393625470,1762864247339,-1178.71,0.00038356,2]
[393625471,1762864247349,-1178.71,0.00038356,2]
[393625472,1762864247359,-1178.71,0.00038356,2]
[393625473,1762864247368,-1178.71,0.00038356,2]
[393625474,1762864247378,-1178.71,0.00038356,2]
[393625475,1762864247389,-1178.71,0.00038356,2]
[393625476,1762864247403,-1178.71,0.00038356,2]
[393625477,1762864247414,-1178.81643746,0.00038356,2]
[393625478,1762864247424,-151.0,0.00038356,2]
[393625479,1762864247433,-151.0,0.00038356,2]
[393625480,1762864247572,-151.0,0.00038356,2]
[393625481,1762864247581,-1000.0,0.00038356,2]
[393625482,1762864247591,-1000.0,0.00038356,2]
[393625483,1762864247600,-1000.0,0.00038356,2]
[393625484,1762864247609,-1000.0,0.00038356,2]
[393625485,1762864247620,-1000.0,0.00038356,2]
[393625486,1762864247630,-1000.0,0.00038356,2]
[393625487,1762864247639,-300.0,0.00038356,2]
[393625488,1762864247649,-300.0,0.00038356,2]
[393625489,1762864247659,-300.0,0.00038356,2]
[393625490,1762864247669,-300.0,0.00038356,2]
[393625491,1762864247679,-300.0,0.00038356,2]
[393625492,1762864247688,-500.0,0.00038356,2]
[393625493,1762864247698,-500.0,0.00038356,2]
[393625494,1762864247708,-500.0,0.00038356,2]
[393625495,1762864247718,-500.0,0.00038356,2]
[393625496,1762864247733,-500.0,0.00038356,2]
[393625497,1762864247743,-500.0,0.00038356,2]
[393625498,1762864247753,-538.13671702,0.00038356,2]
[393625499,1762864247763,-150.0,0.00038356,5]
[393625500,1762864247772,-500.0,0.000384,5]
[393625501,1762864247782,-168.0,0.00038423,2]
[393625502,1762864247792,-156.441113,0.00038425,2]
[393625503,1762864247802,-186.338707,0.00038425,2]
[393625504,1762864247811,-150.271484,0.00038425,2]
[393625505,1762864247821,-156.441113,0.00038425,2]
[393625506,1762864247831,-216.88705013,0.0003846,2]
[393625507,1762864247841,-300.0,0.0003849,2]
[393625508,1762864247850,-300.0,0.00038491,2]
[393625509,1762864247861,-300.0,0.00038503,2]
[393625510,1762864247871,-300.0,0.0003853,2]
[393625511,1762864247881,-300.0,0.00038533,2]
[393625512,1762864247891,-868.0,0.00038541,7]
[393625513,1762864247902,-211.15,0.00038554,60]
[393625514,1762864247912,-300.0,0.00038567,2]
[393625515,1762864247922,-300.0,0.00038576,2]
[393625516,1762864247931,-1250.53,0.00038595,2]
[393625517,1762864247940,-295.15,0.00038612,2]
[393625518,1762864247949,-1653.22241756,0.00038621,2]
[393625519,1762864247959,-150.0,0.00038625,7]
[393625520,1762864247968,-192.83,0.0003863,30]
[393625521,1762864247978,-300.0,0.00038638,2]
[393625522,1762864247988,-162.76175569,0.00038658,30]
[393625523,1762864247999,-162.76175568,0.00038658,30]
[393625524,1762864248009,-300.0,0.00038669,2]
[393625525,1762864248018,-300.0,0.00038692,2]
[393625526,1762864248027,-189.98,0.00038693,2]
[393625527,1762864248037,-1653.22241756,0.00038696,2]
[393625528,1762864248047,-500.0,0.000387,120]
[393625529,1762864248057,-500.0,0.000387,120]
[393625530,1762864248068,-500.0,0.000387,120]
[393625531,1762864248079,-500.0,0.000387,120]
[393625532,1762864248090,-500.0,0.000387,120]
[393625533,1762864248099,-500.0,0.000387,120]
[393625534,1762864248109,-500.0,0.000387,120]
[393625535,1762864248119,-500.0,0.000387,120]
[393625536,1762864248128,-500.0,0.000387,120]
[393625537,1762864248137,-500.0,0.000387,120]
[393625538,1762864248147,-500.0,0.000387,120]
[393625539,1762864248157,-500.0,0.000387,120]
[393625540,1762864248166,-500.0,0.000387,120]
[393625541,1762864248175,-500.0,0.000387,120]
[393625542,1762864248184,-500.0,0.000387,120]
[393625543,1762864248193,-500.0,0.000387,120]
[393625544,1762864248202,-500.0,0.000387,120]
[393625545,1762864248212,-500.0,0.000387,120]
[393625546,1762864248221,-500.0,0.000387,120]
[393625547,1762864248231,-500.0,0.000387,120]
[393625548,1762864248240,-500.0,0.000387,120]
[393625549,1762864248251,-500.0,0.000387,120]
[393625550,1762864248265,-500.0,0.000387,120]
[393625551,1762864248276,-500.0,0.000387,120]
[393625552,1762864248287,-500.0,0.000387,120]
[393625553,1762864248296,-500.0,0.000387,120]
[393625554,1762864248311,-500.0,0.000387,120]
[393625555,1762864248321,-371.73,0.000387,120]
[393625556,1762864248330,-867.0,0.00038723,2]
[393625557,1762864248340,-300.0,0.00038744,2]
[393625558,1762864248350,-300.0,0.0003875,2]
[393625559,1762864248359,-300.0,0.00038767,2]
[393625560,1762864248369,-300.0,0.00038783,2]
[393625561,1762864248378,-150.0,0.00038787,7]
[393625562,1762864248388,-300.0,0.0003879,2]
[393625563,1762864248398,-186.02,0.00038821,2]
[393625564,1762864248411,-500.0,0.00038863,7]
[393625565,1762864248421,-500.0,0.00038863,7]
[393625566,1762864248430,-500.0,0.00038863,7]
[393625567,1762864248440,-500.0,0.00038863,7]
[393625568,1762864248449,-500.0,0.00038863,7]
[393625569,1762864248459,-500.0,0.00038863,7]
[393625570,1762864248469,-500.0,0.00038863,7]
[393625571,1762864248479,-500.0,0.00038863,7]
[393625572,1762864248489,-500.0,0.00038863,7]
[393625573,1762864248501,-500.0,0.00038863,7]
[393625574,1762864248511,-500.0,0.00038863,7]
[393625575,1762864248523,-500.0,0.00038863,7]
[393625576,1762864248534,-500.0,0.00038863,7]
[393625577,1762864248544,-512.69,0.00038863,7]
[393625578,1762864248554,-500.0,0.00038863,7]
[393625579,1762864248564,-500.0,0.00038863,7]
[393625580,1762864248573,-500.0,0.00038863,7]
[393625581,1762864248583,-219.57,0.00038863,7]
[393625582,1762864248594,-216.88705013,0.0003888,2]
[393625583,1762864248604,-500.0,0.00038885,2]
[393625584,1762864248615,-186.338707,0.000389,60]
[393625585,1762864248625,-11198.9020093,0.000389,60]
[393625586,1762864248635,-1261.42212681,0.000389,60]
[393625587,1762864248645,-364.09596743,0.000389,120]
[393625588,1762864248655,-1000.0,0.000389,7]
[393625589,1762864248665,-192.84,0.00038904,30]
[393625590,1762864248676,-204.43952516,0.00038904,5]
[393625591,1762864248686,-150.0,0.00038906,7]
[393625592,1762864248696,-216.88705013,0.00038907,2]
[393625593,1762864248706,-501.16361588,0.00038948,5]
[393625594,1762864248715,-300.0,0.00038986,2]
[393625595,1762864248727,-500.0,0.00038999,120]
[393625596,1762864248737,-500.0,0.00038999,120]
[393625597,1762864248747,-2149.45206844,0.00038999,2]
[393625598,1762864248757,-163.0,0.00039,120]
[393625599,1762864248768,-164.0,0.00039,30]
[393625600,1762864248778,-203.9235885,0.00039,120]
[393625601,1762864248792,-164.09,0.00039,60]
[393625602,1762864248802,-172.58398853,0.00039,10]
[393625603,1762864248814,-933.695199,0.00039,10]
[393625604,1762864248823,-1570.09348638,0.00039,120]
[393625605,1762864248835,-514.30289769,0.00039,120]
[393625606,1762864248844,-5550.33054395,0.00039,2]
[393625607,1762864248854,-1004.26378447,0.00039,7]
[393625608,1762864248864,-150.0,0.00039006,7]
[393625609,1762864248874,-200.0,0.00039021,6]
[393625610,1762864248885,-200.0,0.00039021,6]
[393625611,1762864248896,-200.0,0.00039021,6]
[393625612,1762864248905,-150.0,0.00039022,7]
[393625613,1762864248916,-1653.22241756,0.00039022,2]
[393625614,1762864248927,-200.0,0.00039028,6]
[393625615,1762864248937,-300.0,0.00039029,2]
[393625616,1762864248947,-200.0,0.00039032,6]
[393625617,1762864248956,-200.0,0.00039032,6]
[393625618,1762864248966,-200.0,0.00039032,6]
[393625619,1762864248979,-200.0,0.00039032,6]
[393625620,1762864248988,-300.0,0.00039033,93]
[393625621,1762864248998,-200.0,0.00039045,6]
[393625622,1762864249008,-200.0,0.0003905,6]
[393625623,1762864249018,-300.0,0.00039077,2]
[393625624,1762864249027,-300.0,0.0003908,2]
[393625625,1762864249038,-300.0,0.00039083,2]
[393625626,1762864249048,-300.0,0.00039087,2]
[393625627,1762864249058,-1000.0,0.00039094,7]
[393625628,1762864249067,-7012.81,0.000391,30]
[393625629,1762864249076,-150.0,0.00039127,7]
[393625630,1762864249086,-300.0,0.00039136,2]
[393625631,1762864249096,-186.338707,0.0003915,60]
[393625632,1762864249105,-156.460359,0.0003915,60]
[393625633,1762864249115,-300.0,0.00039165,2]
[393625634,1762864249125,-1000.684,0.00039199,2]
[393625635,1762864249134,-300.0,0.000392,2]
[393625636,1762864249144,-239.17,0.000392,14]
[393625637,1762864249154,-1653.22241759,0.00039214,2]
[393625638,1762864249167,-150.0,0.00039217,7]
[393625639,1762864249176,-450.0,0.00039217,7]
[393625640,1762864249186,-500.0,0.0003924,120]
[393625641,1762864249195,-500.0,0.0003924,2]
[393625642,1762864249205,-1000.0,0.00039243,7]
[393625643,1762864249214,-300.0,0.00039254,2]
[393625644,1762864249224,-44894.5778389,0.0003926,2]
[393625645,1762864249234,-300.0,0.00039269,2]
[393625646,1762864249243,-1000.0,0.00039272,7]
[393625647,1762864249252,-300.0,0.00039275,2]
[393625648,1762864249262,-1000.0,0.00039282,7]
[393625649,1762864249271,-150.0,0.00039283,7]
[393625650,1762864249281,-150.0,0.00039292,7]
[393625651,1762864249291,-3496.28,0.000393,30]
[393625652,1762864249300,-150.0,0.00039308,7]
[393625653,1762864249313,-208.85288909,0.00039314,7]
[393625654,1762864249322,-1000.0,0.00039321,7]
[393625655,1762864249331,-300.0,0.00039387,2]
[393625656,1762864249341,-156.441113,0.000394,60]
[393625657,1762864249351,-186.338707,0.000394,60]
[393625658,1762864249360,-156.441113,0.000394,60]
[393625659,1762864249374,-156.460359,0.000394,60]
[393625660,1762864249385,-153.257485,0.000394,60]
[393625661,1762864249395,-319757.33061801,0.00039401,30]
[393625662,1762864249404,-300.0,0.00039402,2]
[393625663,1762864249414,-300.0,0.00039403,2]
[393625664,1762864249424,-1000.0,0.00039416,7]
[393625665,1762864249437,-150.0,0.0003942,7]
[393625666,1762864249446,-300.0,0.00039429,2]
[393625667,1762864249456,-1000.0,0.00039436,7]
[393625668,1762864249465,-1000.0,0.00039437,7]
[393625669,1762864249475,-1000.0,0.00039437,7]
[393625670,1762864249485,-150.0,0.00039441,7]
[393625671,1762864249495,-200.0,0.00039442,20]
[393625672,1762864249504,-1013.01039228,0.00039445,7]
[393625673,1762864249514,-216.88705015,0.00039445,2]
[393625674,1762864249524,-150.0,0.00039448,50]
[393625675,1762864249535,-150.0,0.00039448,60]
[393625676,1762864249544,-500.0,0.00039448,60]
[393625677,1762864249554,-500.0,0.00039448,60]
[393625678,1762864249564,-150.0,0.00039448,60]
[393625679,1762864249574,-500.0,0.00039448,60]
[393625680,1762864249586,-500.0,0.00039448,60]
[393625681,1762864249596,-150.0,0.00039448,60]
[393625682,1762864249607,-500.0,0.00039448,60]
[393625683,1762864249617,-150.0,0.00039448,60]
[393625684,1762864249626,-500.0,0.00039448,60]
[393625685,1762864249636,-500.0,0.00039448,60]
[393625686,1762864249646,-150.0,0.00039448,60]
[393625687,1762864249656,-500.0,0.00039448,60]
[393625688,1762864249666,-500.0,0.00039448,23]
[393625689,1762864249676,-151.0,0.0003945,91]
[393625690,1762864249687,-151.0,0.0003945,120]
[393625691,1762864249696,-151.0,0.0003945,120]
[393625692,1762864249706,-151.0,0.0003945,120]
[393625693,1762864249716,-151.0,0.00039451,120]
[393625694,1762864249726,-151.0,0.00039451,120]
[393625695,1762864249737,-151.0,0.00039451,120]
[393625696,1762864249747,-151.0,0.00039451,120]
[393625697,1762864249757,-151.0,0.00039451,120]
[393625698,1762864249767,-218.063022,0.00039451,120]
[393625699,1762864249777,-161.66064,0.00039451,120]
[393625700,1762864249787,-286.974513,0.00039451,120]
[393625701,1762864249798,-218.063022,0.00039451,120]
[393625702,1762864249808,-218.063022,0.00039451,120]
[393625703,1762864249818,-151.0,0.00039451,120]
[393625704,1762864249827,-151.0,0.00039451,120]
[393625705,1762864249837,-218.063022,0.00039451,120]
[393625706,1762864249847,-151.0,0.00039451,120]
[393625707,1762864249857,-151.0,0.00039451,120]
[393625708,1762864249867,-151.0,0.00039451,120]
[393625709,1762864249877,-386.976691,0.00039451,120]
[393625710,1762864249887,-386.976691,0.00039451,120]
[393625711,1762864249896,-386.976691,0.00039451,120]
[393625712,1762864249915,-151.0,0.00039451,95]
[393625713,1762864249926,-386.976691,0.00039451,120]
[393625714,1762864249939,-1000.0,0.00039452,120]
[393625715,1762864249951,-1000.0,0.00039452,120]
[393625716,1762864249962,-1000.0,0.00039452,120]
[393625717,1762864249972,-1000.0,0.00039452,120]
[393625718,1762864249983,-585.19739311,0.00039452,120]
[393625719,1762864249993,-1000.0,0.00039467,7]
[393625720,1762864250003,-196.76,0.00039481,2]
[393625721,1762864250014,-151.0,0.00039482,120]
[393625722,1762864250025,-151.0,0.00039482,120]
[393625723,1762864250035,-201.975051,0.00039482,120]
[393625724,1762864250045,-201.975051,0.00039482,120]
[393625725,1762864250056,-151.0,0.00039482,120]
[393625726,1762864250066,-201.975051,0.00039482,120]
[393625727,1762864250078,-151.0,0.00039482,120]
[393625728,1762864250136,-151.0,0.00039482,120]
[393625729,1762864250146,-1299.000187,0.00039482,120]
[393625730,1762864250155,-151.0,0.00039482,120]
[393625731,1762864250164,-298.404026,0.00039482,120]
[393625732,1762864250174,-201.975051,0.00039482,120]
[393625733,1762864250183,-1299.000187,0.00039482,120]
[393625734,1762864250193,-151.0,0.00039482,120]
[393625735,1762864250202,-151.0,0.00039482,120]
[393625736,1762864250212,-151.0,0.00039482,120]
[393625737,1762864250221,-1299.000187,0.00039482,120]
[393625738,1762864250230,-285.838095,0.00039482,120]
[393625739,1762864250240,-225.588125,0.00039482,120]
[393625740,1762864250249,-1299.000187,0.00039482,120]
[393625741,1762864250258,-151.0,0.00039482,120]
[393625742,1762864250267,-177.507441,0.00039482,15]
[393625743,1762864250277,-163.055073,0.00039482,120]
[393625744,1762864250286,-151.0,0.00039482,120]
[393625745,1762864250295,-151.0,0.00039482,120]
[393625746,1762864250306,-177.507441,0.00039482,15]
[393625747,1762864250317,-307.721433,0.00039482,120]
[393625748,1762864250327,-177.507441,0.00039482,15]
[393625749,1762864250336,-307.721433,0.00039482,120]
[393625750,1762864250347,-177.507441,0.00039482,15]
[393625751,1762864250356,-307.721433,0.00039482,120]
[393625752,1762864250366,-151.0,0.00039482,120]
[393625753,1762864250375,-307.721433,0.00039482,120]
[393625754,1762864250385,-260.239907,0.00039482,120]
[393625755,1762864250396,-255.663913,0.00039482,120]
[393625756,1762864250405,-260.239907,0.00039482,120]
[393625757,1762864250415,-255.663913,0.00039482,120]
[393625758,1762864250425,-171.09974,0.00039482,120]
[393625759,1762864250434,-260.239907,0.00039482,120]
[393625760,1762864250444,-255.663913,0.00039482,120]
[393625761,1762864250453,-171.09974,0.00039482,120]
[393625762,1762864250463,-260.239907,0.00039482,120]
[393625763,1762864250472,-255.663913,0.00039482,120]
[393625764,1762864250481,-171.09974,0.00039482,120]
[393625765,1762864250491,-171.09974,0.00039482,120]
[393625766,1762864250502,-151.0,0.00039482,120]
[393625767,1762864250513,-151.0,0.00039482,120]
[393625768,1762864250523,-151.0,0.00039482,120]
[393625769,1762864250533,-151.0,0.00039482,120]
[393625770,1762864250542,-151.0,0.00039482,120]
[393625771,1762864250553,-151.0,0.00039482,120]
[393625772,1762864250563,-151.0,0.00039482,120]
[393625773,1762864250573,-150.0,0.00039495,7]
[393625774,1762864250582,-1000.0,0.00039499,7]
[393625775,1762864250592,-1900.0,0.000395,14]
[393625776,1762864250602,-8207.96,0.000395,14]
[393625777,1762864250612,-5000.0,0.00039501,30]
[393625778,1762864250622,-500.0,0.00039508,120]
[393625779,1762864250632,-196.76,0.00039521,2]
[393625780,1762864250642,-150.0,0.00039539,7]
[393625781,1762864250651,-396.3463047,0.00039551,2]
[393625782,1762864250661,-196.76,0.0003956,2]
[393625783,1762864250671,-179.54679155,0.00039581,2]
[393625784,1762864250681,-300.0,0.00039584,2]
[393625785,1762864250689,-150.0,0.00039585,50]
[393625786,1762864250699,-150.0,0.00039585,60]
[393625787,1762864250709,-500.0,0.00039585,60]
[393625788,1762864250719,-500.0,0.00039585,60]
[393625789,1762864250728,-150.0,0.00039585,60]
[393625790,1762864250739,-500.0,0.00039585,60]
[393625791,1762864250749,-500.0,0.00039585,60]
[393625792,1762864250759,-150.0,0.00039585,60]
[393625793,1762864250769,-500.0,0.00039585,60]
[393625794,1762864250780,-150.0,0.00039585,60]
[393625795,1762864250790,-500.0,0.00039585,60]
[393625796,1762864250799,-604.99215178,0.00039585,60]
[393625797,1762864250809,-150.0,0.00039585,60]
[393625798,1762864250818,-500.0,0.00039585,60]
[393625799,1762864250827,-500.0,0.00039585,23]
[393625800,1762864250836,-150.0,0.00039598,7]
[393625801,1762864250845,-150.0,0.00039598,7]
[393625802,1762864250855,-500.0,0.00039598,7]
[393625803,1762864250865,-500.0,0.00039598,2]
[393625804,1762864250874,-500.0,0.00039598,7]
[393625805,1762864250884,-150.0,0.00039598,7]
[393625806,1762864250893,-500.0,0.00039598,2]
[393625807,1762864250903,-500.0,0.00039598,7]
[393625808,1762864250912,-151.0,0.00039598,14]
[393625809,1762864250921,-2000.0,0.00039599,2]
[393625810,1762864250931,-300.0,0.00039599,2]
[393625811,1762864250940,-500.0,0.000396,120]
[393625812,1762864250949,-500.0,0.000396,120]
[393625813,1762864250958,-455.6375588,0.000396,120]
[393625814,1762864250967,-500.0,0.000396,7]
[393625815,1762864250976,-24044.30623614,0.000396,40]
[393625816,1762864250985,-179.37,0.000396,60]
[393625817,1762864250995,-162.579136,0.000396,120]
[393625818,1762864251004,-338.517687,0.000396,120]
[393625819,1762864251014,-338.517687,0.000396,120]
[393625820,1762864251024,-338.517687,0.000396,120]
[393625821,1762864251034,-338.517687,0.000396,120]
[393625822,1762864251046,-1900.0,0.000396,14]
[393625823,1762864251056,-151.0,0.000396,120]
[393625824,1762864251066,-151.0,0.000396,120]
[393625825,1762864251076,-151.827469,0.000396,120]
[393625826,1762864251085,-151.863638,0.000396,120]
[393625827,1762864251094,-151.0,0.000396,120]